[Event "DVM U10 2024"]
[Site "Duesseldorf"]
[Date "2024.12.28"]
[Round "4"]
[White "Vlad, Mark"]
[Black "Artarov, Rina"]
[Result "1-0"]
[ECO "B01"]
[WhiteElo "1439"]
[BlackElo "1122"]
[Annotator "NA"]
[PlyCount "85"]
[EventDate "2024.12.23"]
[EventType "team-tourn"]
[EventRounds "7"]
[EventCountry "GER"]
[SourceTitle "playchess.com"]
[Source "ChessBase"]
[SourceQuality "1"]
[TimeControl "3300+5"]

1. e4 {[%emt 0:00:04]} d5 {[%emt 0:00:03]} 2. exd5 {[%emt 0:00:06]} Qxd5 {[%emt 0:00:10]} 3. Nc3 {[%emt 0:00:07]} Qa5 {[%emt 0:00:09]} 4. Bc4 {[%emt 0:00:12]} c6 {[%emt 0:00:20]} 5. d4 {[%emt 0:00:37]} Bf5 {[%emt 0:00:12]} 6. Bf4 {[%emt 0:01:25]} e6 {[%emt 0:00:39]} 7. a3 {[%emt 0:00:55]} Nf6 {[%emt 0:00:14]} 8. b4 {[%emt 0:01:19]} Bxb4 {[%emt 0:02:12]} 9. axb4 {[%emt 0:02:00]} Qxb4 {[%emt 0:00:07]} 10. Qd2 {[%emt 0:01:37]} Qxc4 {[%emt 0:00:24]} 11. Ra4 {[%emt 0:01:35]} Ne4 {[%emt 0:03:56]} 12. Rxc4 {[%emt 0:02:26]} Nxd2 {[%emt 0:00:10]} 13. Kxd2 {[%emt 0:00:12]} Nd7 {[%emt 0:00:49]} 14. Rb4 {[%emt 0:01:52]} Nb6 {[%emt 0:00:49]} 15. Bc7 {[%emt 0:02:44]} Nd7 {[%emt 0:16:57]} 16. Nf3 {[%emt 0:02:33]} b6 {[%emt 0:00:18]} 17. Bg3 {[%emt 0:01:01]} O-O {[%emt 0:01:14]} 18. Ne5 {[%emt 0:03:40]} Nxe5 {[%emt 0:01:37]} 19. Bxe5 {[%emt 0:00:14]} c5 {[%emt 0:00:37]} 20. dxc5 {[%emt 0:00:45]} Rfd8+ {[%emt 0:00:32]} 21. Kc1 {[%emt 0:00:55]} bxc5 {[%emt 0:00:48]} 22. Rc4 {[%emt 0:00:40]} Rdc8 {[%emt 0:00:41]} 23. Bd6 {[%emt 0:01:09]} a5 {[%emt 0:01:07]} 24. Rxc5 {[%emt 0:01:28]} Rd8 {[%emt 0:00:55]} 25. Bc7 {[%emt 0:02:56]} Rdc8 {[%emt 0:00:38]} 26. Rxa5 {[%emt 0:01:04]} h6 {[%emt 0:00:23]} 27. Rxa8 {[%emt 0:00:26]} Rxa8 {[%emt 0:00:09]} 28. Kb2 {[%emt 0:00:34]} Ra7 {[%emt 0:00:14]} 29. Bg3 {[%emt 0:00:49]} Rb7+ {[%emt 0:00:57]} 30. Kc1 {[%emt 0:00:33]} Ra7 {[%emt 0:00:12]} 31. Rd1 {[%emt 0:00:38]} Ra3 {[%emt 0:01:01]} 32. Kd2 {[%emt 0:00:55]} Ra7 {[%emt 0:00:54]} 33. Ke2 {[%emt 0:01:09]} Bxc2 {[%emt 0:00:33]} 34. Rd2 {[%emt 0:00:41]} Bb3 {[%emt 0:00:22]} 35. Rd4 {[%emt 0:00:28]} Ra1 {[%emt 0:00:48]} 36. Rg4 {[%emt 0:01:14]} Rc1 {[%emt 0:00:25]} 37. Be5 {[%emt 0:01:27]} f6 {[%emt 0:00:13]} 38. Bxf6 {[%emt 0:00:27]} Rc2+ {[%emt 0:00:24]} 39. Ke3 {[%emt 0:00:34]} g5 {[%emt 0:01:31]} 40. h4 {[%emt 0:01:58]} Kf7 {[%emt 0:00:42]} 41. hxg5 {[%emt 0:00:47]} hxg5 {[%emt 0:00:11]} 42. Ne4 {[%emt 0:00:53]} Rc4 {[%emt 0:00:30]} 43. Nd6+ {[%emt 0:00:15]} 1-0

[Event "DVM U10 2024"]
[Site "Duesseldorf"]
[Date "2024.12.28"]
[Round "4"]
[White "Götz, Georg"]
[Black "Kukhtichev, Maksim"]
[Result "1-0"]
[ECO "C46"]
[WhiteElo "1284"]
[BlackElo "1639"]
[Annotator "NA"]
[PlyCount "85"]
[EventDate "2024.12.23"]
[EventType "team-tourn"]
[EventRounds "7"]
[EventCountry "GER"]
[SourceTitle "playchess.com"]
[Source "ChessBase"]
[SourceQuality "1"]
[TimeControl "3300+5"]

1. e4 {[%emt 0:00:01]} e5 {[%emt 0:00:04]} 2. Nf3 {[%emt 0:00:12]} Nc6 {[%emt 0:00:09]} 3. Nc3 {[%emt 0:00:14]} Bb4 {[%emt 0:00:04]} 4. Nd5 {[%emt 0:01:19]} Nf6 {[%emt 0:00:29]} 5. Nxb4 {[%emt 0:01:01]} Nxb4 {[%emt 0:00:04]} 6. d3 {[%emt 0:01:45]} d6 {[%emt 0:00:20]} 7. c3 {[%emt 0:02:12]} Nc6 {[%emt 0:00:04]} 8. Bg5 {[%emt 0:00:31]} O-O {[%emt 0:00:07]} 9. h4 {[%emt 0:01:41]} h6 {[%emt 0:00:05]} 10. Be3 {[%emt 0:00:38]} d5 {[%emt 0:01:15]} 11. exd5 {[%emt 0:02:26]} Nxd5 {[%emt 0:00:08]} 12. Nd2 {[%emt 0:01:41]} Nxe3 {[%emt 0:00:14]} 13. fxe3 {[%emt 0:00:53]} f5 {[%emt 0:00:25]} 14. Be2 {[%emt 0:01:16]} f4 {[%emt 0:00:36]} 15. e4 {[%emt 0:00:46]} b6 {[%emt 0:01:11]} 16. Bg4 {[%emt 0:00:45]} Qxd3 {[%emt 0:00:30]} 17. Bf3 {[%emt 0:04:19]} Qd6 {[%emt 0:01:27]} 18. h5 {[%emt 0:00:38]} Ba6 {[%emt 0:00:50]} 19. Be2 {[%emt 0:01:33]} Bxe2 {[%emt 0:00:46]} 20. Qxe2 {[%emt 0:02:23]} Rad8 {[%emt 0:01:42]} 21. Qc4+ {[%emt 0:01:17]} Kh8 {[%emt 0:00:14]} 22. O-O-O {[%emt 0:00:50]} a5 {[%emt 0:01:19]} 23. Nf3 {[%emt 0:00:36]} Qf6 {[%emt 0:00:07]} 24. Rxd8 {[%emt 0:00:34]} Rxd8 {[%emt 0:00:11]} 25. Rd1 {[%emt 0:00:21]} Rxd1+ {[%emt 0:02:42]} 26. Kxd1 {[%emt 0:02:08]} Qd6+ {[%emt 0:02:05]} 27. Kc2 {[%emt 0:00:25]} Qc5 {[%emt 0:02:39]} 28. Qxc5 {[%emt 0:01:56]} bxc5 {[%emt 0:00:11]} 29. Kb3 {[%emt 0:00:07]} Kg8 {[%emt 0:00:59]} 30. Kc4 {[%emt 0:00:14]} Kf7 {[%emt 0:00:36]} 31. Kxc5 {[%emt 0:00:14]} Na7 {[%emt 0:00:07]} 32. Nxe5+ {[%emt 0:00:20]} Ke6 {[%emt 0:00:22]} 33. Ng6 {[%emt 0:00:37]} Kf6 {[%emt 0:00:49]} 34. Nxf4 {[%emt 0:00:15]} Ke5 {[%emt 0:00:26]} 35. g3 {[%emt 0:00:46]} Kxe4 {[%emt 0:00:03]} 36. Ne6 {[%emt 0:00:42]} Kf3 {[%emt 0:00:24]} 37. Nxg7 {[%emt 0:00:13]} Kxg3 {[%emt 0:00:03]} 38. Nf5+ {[%emt 0:00:15]} Kg4 {[%emt 0:00:06]} 39. Nxh6+ {[%emt 0:00:14]} Kxh5 {[%emt 0:00:05]} 40. Nf5 {[%emt 0:00:21]} Kg6 {[%emt 0:00:08]} 41. Ne7+ {[%emt 0:00:13]} Kf6 {[%emt 0:00:05]} 42. Nc6 {[%emt 0:00:24]} Ke6 {[%emt 0:00:18]} 43. Nxa7 {[%emt 0:00:11]} 1-0

[Event "DVM U10 2024"]
[Site "Duesseldorf"]
[Date "2024.12.28"]
[Round "4"]
[White "Belyakov, Konstantin"]
[Black "Ju, Eric Zirui"]
[Result "1-0"]
[ECO "B56"]
[WhiteElo "1251"]
[BlackElo "1126"]
[Annotator "NA"]
[PlyCount "129"]
[EventDate "2024.12.23"]
[EventType "team-tourn"]
[EventRounds "7"]
[EventCountry "GER"]
[SourceTitle "playchess.com"]
[Source "ChessBase"]
[SourceQuality "1"]
[TimeControl "3300+5"]

1. e4 {[%emt 0:00:04]} c5 {[%emt 0:00:04]} 2. Nf3 {[%emt 0:00:02]} d6 {[%emt 0:00:08]} 3. d4 {[%emt 0:00:07]} cxd4 {[%emt 0:00:07]} 4. Nxd4 {[%emt 0:00:05]} Nf6 {[%emt 0:00:15]} 5. Nc3 {[%emt 0:00:11]} Nc6 {[%emt 0:00:10]} 6. Nf3 {[%emt 0:00:08]} g6 {[%emt 0:00:24]} 7. Rb1 {[%emt 0:01:05]} Bg7 {[%emt 0:00:17]} 8. Bd2 {[%emt 0:00:08]} O-O {[%emt 0:00:16]} 9. Bd3 {[%emt 0:00:05]} Bg4 {[%emt 0:00:56]} 10. a3 {[%emt 0:01:17]} Ne5 {[%emt 0:00:20]} 11. Be2 {[%emt 0:00:11]} Bxf3 {[%emt 0:01:08]} 12. Bxf3 {[%emt 0:00:10]} Nxf3+ {[%emt 0:00:51]} 13. Qxf3 {[%emt 0:00:18]} Qd7 {[%emt 0:00:28]} 14. O-O {[%emt 0:00:30]} b6 {[%emt 0:01:11]} 15. Rbd1 {[%emt 0:02:16]} Qg4 {[%emt 0:01:58]} 16. Qxg4 {[%emt 0:02:41]} Nxg4 {[%emt 0:00:15]} 17. h3 {[%emt 0:00:17]} Ne5 {[%emt 0:01:09]} 18. b3 {[%emt 0:01:04]} Rac8 {[%emt 0:00:36]} 19. Nd5 {[%emt 0:04:03]} Rfe8 {[%emt 0:00:52]} 20. c4 {[%emt 0:01:49]} e6 {[%emt 0:01:31]} 21. Ne3 {[%emt 0:01:46]} Rcd8 {[%emt 0:00:34]} 22. Bb4 {[%emt 0:00:26]} Bf8 {[%emt 0:00:50]} 23. Rd2 {[%emt 0:04:49]} Rd7 {[%emt 0:01:43]} 24. Rfd1 {[%emt 0:00:08]} Red8 {[%emt 0:00:45]} 25. Bc3 {[%emt 0:01:29]} Bg7 {[%emt 0:00:59]} 26. Bb4 {[%emt 0:02:23]} Bf8 {[%emt 0:00:46]} 27. a4 {[%emt 0:00:56]} f6 {[%emt 0:04:00]} 28. a5 {[%emt 0:01:17]} Nc6 {[%emt 0:00:53]} 29. Bc3 {[%emt 0:00:30]} Be7 {[%emt 0:01:40]} 30. axb6 {[%emt 0:00:16]} axb6 {[%emt 0:00:25]} 31. Ng4 {[%emt 0:02:46]} Kf7 {[%emt 0:00:43]} 32. e5 {[%emt 0:01:53]} f5 {[%emt 0:01:20]} 33. exd6 {[%emt 0:00:31]} Rxd6 {[%emt 0:00:43]} 34. Rxd6 {[%emt 0:00:21]} Bxd6 {[%emt 0:00:38]} 35. Ne5+ {[%emt 0:01:38]} Nxe5 {[%emt 0:03:38]} 36. Bxe5 {[%emt 0:00:13]} Ke7 {[%emt 0:00:22]} 37. Bxd6+ {[%emt 0:01:07]} Rxd6 {[%emt 0:00:12]} 38. Rc1 {[%emt 0:00:33]} Rc6 {[%emt 0:01:24]} 39. Kf1 {[%emt 0:00:18]} Kd6 {[%emt 0:01:24]} 40. Ke2 {[%emt 0:00:16]} b5 {[%emt 0:01:00]} 41. Kd3 {[%emt 0:00:43]} e5 {[%emt 0:00:53]} 42. f3 {[%emt 0:00:27]} bxc4+ {[%emt 0:00:57]} 43. Rxc4 {[%emt 0:00:07]} Rxc4 {[%emt 0:01:02]} 44. Kxc4 {[%emt 0:00:33]} h6 {[%emt 0:00:21]} 45. b4 {[%emt 0:00:41]} h5 {[%emt 0:00:56]} 46. h4 {[%emt 0:00:16]} f4 {[%emt 0:00:40]} 47. b5 {[%emt 0:00:09]} Kc7 {[%emt 0:02:03]} 48. Kd5 {[%emt 0:00:11]} Kb6 {[%emt 0:00:12]} 49. Kxe5 {[%emt 0:00:07]} Kxb5 {[%emt 0:00:11]} 50. Kxf4 {[%emt 0:00:08]} Kc6 {[%emt 0:00:30]} 51. Kg5 {[%emt 0:00:04]} Kd7 {[%emt 0:00:14]} 52. Kxg6 {[%emt 0:00:08]} Ke6 {[%emt 0:00:11]} 53. f4 {[%emt 0:00:15]} Ke7 {[%emt 0:00:14]} 54. Kg7 {[%emt 0:00:09]} Ke6 {[%emt 0:00:09]} 55. Kg6 {[%emt 0:00:17]} Ke7 {[%emt 0:00:12]} 56. f5 {[%emt 0:00:08]} Kf8 {[%emt 0:00:16]} 57. Kf6 {[%emt 0:00:07]} Kg8 {[%emt 0:00:30]} 58. Ke7 {[%emt 0:00:07]} Kg7 {[%emt 0:00:29]} 59. f6+ {[%emt 0:00:06]} Kh8 {[%emt 0:00:22]} 60. f7 {[%emt 0:00:09]} Kh7 {[%emt 0:00:22]} 61. f8=Q {[%emt 0:00:12]} Kg6 {[%emt 0:00:14]} 62. Qf4 {[%emt 0:00:09]} Kg7 {[%emt 0:00:44]} 63. Qg5+ {[%emt 0:00:11]} Kh7 {[%emt 0:00:24]} 64. Kf7 {[%emt 0:00:10]} Kh8 {[%emt 0:00:23]} 65. Qxh5# {[%emt 0:00:12]} 1-0

[Event "DVM U10 2024"]
[Site "Duesseldorf"]
[Date "2024.12.28"]
[Round "4"]
[White "Rogozhin, Georg"]
[Black "Elli, Emeric"]
[Result "0-1"]
[ECO "C50"]
[WhiteElo "1232"]
[BlackElo "1574"]
[Annotator "NA"]
[PlyCount "112"]
[EventDate "2024.12.23"]
[EventType "team-tourn"]
[EventRounds "7"]
[EventCountry "GER"]
[SourceTitle "playchess.com"]
[Source "ChessBase"]
[SourceQuality "1"]
[TimeControl "3300+5"]

1. e4 {[%emt 0:00:01]} e5 {[%emt 0:00:05]} 2. Nf3 {[%emt 0:00:03]} Nc6 {[%emt 0:00:07]} 3. Bc4 {[%emt 0:00:04]} Nf6 {[%emt 0:00:06]} 4. c3 {[%emt 0:00:05]} d6 {[%emt 0:00:10]} 5. d4 {[%emt 0:00:09]} Nxe4 {[%emt 0:00:31]} 6. dxe5 {[%emt 0:00:15]} dxe5 {[%emt 0:00:22]} 7. Qxd8+ {[%emt 0:00:09]} Nxd8 {[%emt 0:00:22]} 8. Nxe5 {[%emt 0:00:09]} Bd6 {[%emt 0:00:26]} 9. Nf3 {[%emt 0:00:35]} Be6 {[%emt 0:00:36]} 10. Bb3 {[%emt 0:00:18]} Bxb3 {[%emt 0:00:35]} 11. axb3 {[%emt 0:00:10]} Ne6 {[%emt 0:00:15]} 12. Be3 {[%emt 0:00:08]} b6 {[%emt 0:00:38]} 13. O-O {[%emt 0:00:15]} O-O {[%emt 0:00:24]} 14. c4 {[%emt 0:00:22]} N6c5 {[%emt 0:00:26]} 15. Nc3 {[%emt 0:00:32]} Nxc3 {[%emt 0:00:51]} 16. bxc3 {[%emt 0:00:39]} Nxb3 {[%emt 0:00:11]} 17. Rab1 {[%emt 0:00:57]} Nc5 {[%emt 0:00:10]} 18. Bd4 {[%emt 0:00:26]} Ne6 {[%emt 0:00:34]} 19. Rfe1 {[%emt 0:00:22]} c5 {[%emt 0:00:37]} 20. Be5 {[%emt 0:01:58]} Rfd8 {[%emt 0:01:46]} 21. Red1 {[%emt 0:00:16]} Bxe5 {[%emt 0:00:40]} 22. Rxd8+ {[%emt 0:00:14]} Rxd8 {[%emt 0:00:12]} 23. Nxe5 {[%emt 0:00:01]} Rd6 {[%emt 0:03:14]} 24. g3 {[%emt 0:00:35]} f6 {[%emt 0:00:44]} 25. Ng4 {[%emt 0:01:11]} Nd8 {[%emt 0:01:37]} 26. Ne3 {[%emt 0:00:49]} Nc6 {[%emt 0:00:43]} 27. Nd5 {[%emt 0:01:31]} Na5 {[%emt 0:00:20]} 28. Ne7+ {[%emt 0:00:25]} Kf7 {[%emt 0:00:23]} 29. Nf5 {[%emt 0:00:12]} Rd3 {[%emt 0:00:27]} 30. Ra1 {[%emt 0:01:10]} g6 {[%emt 0:01:11]} 31. Ne3 {[%emt 0:00:31]} Rxc3 {[%emt 0:00:38]} 32. Kf1 {[%emt 0:00:38]} Rd3 {[%emt 0:00:26]} 33. Ke2 {[%emt 0:00:58]} Rd7 {[%emt 0:00:23]} 34. f4 {[%emt 0:00:36]} h5 {[%emt 0:01:11]} 35. h4 {[%emt 0:00:19]} Nb3 {[%emt 0:00:30]} 36. Ra2 {[%emt 0:01:13]} Nc1+ {[%emt 0:00:09]} 37. Ke1 {[%emt 0:01:10]} Nxa2 {[%emt 0:00:04]} 38. Nd5 {[%emt 0:00:06]} Nb4 {[%emt 0:00:34]} 39. Ne3 {[%emt 0:00:10]} Re7 {[%emt 0:00:16]} 40. Kd2 {[%emt 0:00:13]} a5 {[%emt 0:00:20]} 41. Nd1 {[%emt 0:00:14]} Rd7+ {[%emt 0:00:38]} 42. Kc1 {[%emt 0:00:16]} Rd3 {[%emt 0:00:27]} 43. Nb2 {[%emt 0:00:24]} Rxg3 {[%emt 0:00:09]} 44. Kd1 {[%emt 0:00:08]} Rg4 {[%emt 0:00:14]} 45. Ke2 {[%emt 0:00:26]} Rg2+ {[%emt 0:00:08]} 46. Kd1 {[%emt 0:01:41]} Rxb2 {[%emt 0:00:12]} 47. f5 {[%emt 0:00:05]} gxf5 {[%emt 0:00:09]} 48. Kc1 {[%emt 0:00:10]} Nd3+ {[%emt 0:00:06]} 49. Kd1 {[%emt 0:00:07]} Nb4 {[%emt 0:00:35]} 50. Kc1 {[%emt 0:00:15]} Rh2 {[%emt 0:00:07]} 51. Kb1 {[%emt 0:00:11]} f4 {[%emt 0:00:10]} 52. Kc1 {[%emt 0:00:06]} Rc2+ {[%emt 0:00:15]} 53. Kd1 {[%emt 0:00:08]} a4 {[%emt 0:00:12]} 54. Ke1 {[%emt 0:00:28]} a3 {[%emt 0:00:01]} 55. Kf1 {[%emt 0:00:29]} a2 {[%emt 0:00:11]} 56. Kg1 {[%emt 0:00:03]} a1=Q# {[%emt 0:00:07]} 0-1

[Event "DVM U10 2024"]
[Site "Duesseldorf"]
[Date "2024.12.28"]
[Round "4"]
[White "Wüstenberg, Jan"]
[Black "Sachse, Alina"]
[Result "1-0"]
[ECO "C50"]
[WhiteElo "1221"]
[BlackElo "848"]
[Annotator "NA"]
[PlyCount "81"]
[EventDate "2024.12.23"]
[EventType "team-tourn"]
[EventRounds "7"]
[EventCountry "GER"]
[SourceTitle "playchess.com"]
[Source "ChessBase"]
[SourceQuality "1"]
[TimeControl "3300+5"]

1. e4 {[%emt 0:00:00]} e5 {[%emt 0:00:07]} 2. Nf3 {[%emt 0:00:05]} Nc6 {[%emt 0:00:08]} 3. Bc4 {[%emt 0:00:10]} f6 {[%emt 0:01:10]} 4. Nc3 {[%emt 0:00:13]} Nge7 {[%emt 0:00:12]} 5. d3 {[%emt 0:00:20]} g6 {[%emt 0:00:43]} 6. Be3 {[%emt 0:00:07]} d6 {[%emt 0:00:36]} 7. h3 {[%emt 0:00:09]} f5 {[%emt 0:02:11]} 8. Nd5 {[%emt 0:00:10]} Nxd5 {[%emt 0:01:43]} 9. Bxd5 {[%emt 0:00:10]} Bd7 {[%emt 0:00:18]} 10. Bg5 {[%emt 0:00:06]} Be7 {[%emt 0:00:16]} 11. Bh6 {[%emt 0:00:09]} Bf6 {[%emt 0:00:50]} 12. O-O {[%emt 0:00:24]} Qe7 {[%emt 0:00:41]} 13. Qd2 {[%emt 0:00:25]} O-O-O {[%emt 0:00:45]} 14. Ng5 {[%emt 0:00:13]} f4 {[%emt 0:04:10]} 15. Nf7 {[%emt 0:02:54]} Rhg8 {[%emt 0:01:09]} 16. Nxd8 {[%emt 0:00:20]} Rxd8 {[%emt 0:00:15]} 17. Qc3 {[%emt 0:00:11]} Bh4 {[%emt 0:07:47]} 18. Qa3 {[%emt 0:00:33]} a6 {[%emt 0:01:19]} 19. b4 {[%emt 0:00:10]} Re8 {[%emt 0:05:27]} 20. b5 {[%emt 0:00:09]} Kd8 {[%emt 0:04:06]} 21. bxc6 {[%emt 0:00:20]} Bxc6 {[%emt 0:00:17]} 22. Bxc6 {[%emt 0:00:09]} bxc6 {[%emt 0:00:12]} 23. Qxa6 {[%emt 0:00:04]} Kd7 {[%emt 0:03:35]} 24. a4 {[%emt 0:00:14]} g5 {[%emt 0:00:40]} 25. a5 {[%emt 0:00:07]} Qf6 {[%emt 0:02:43]} 26. g3 {[%emt 0:00:34]} fxg3 {[%emt 0:00:14]} 27. fxg3 {[%emt 0:00:04]} Qxh6 {[%emt 0:00:44]} 28. gxh4 {[%emt 0:00:30]} Qxh4 {[%emt 0:00:20]} 29. Rf2 {[%emt 0:00:12]} Qg3+ {[%emt 0:00:48]} 30. Rg2 {[%emt 0:00:09]} Qf4 {[%emt 0:00:28]} 31. Qa7 {[%emt 0:00:27]} Rf8 {[%emt 0:00:20]} 32. a6 {[%emt 0:00:20]} Qe3+ {[%emt 0:00:22]} 33. Qxe3 {[%emt 0:00:21]} Ke7 {[%emt 0:02:13]} 34. Qxg5+ {[%emt 0:00:08]} Ke6 {[%emt 0:01:29]} 35. Qh6+ {[%emt 0:00:11]} Ke7 {[%emt 0:00:29]} 36. Rg7+ {[%emt 0:00:10]} Ke8 {[%emt 0:00:20]} 37. a7 {[%emt 0:00:05]} Rf7 {[%emt 0:00:48]} 38. a8=Q+ {[%emt 0:00:19]} Ke7 {[%emt 0:00:15]} 39. Qg5+ {[%emt 0:00:13]} Ke6 {[%emt 0:01:04]} 40. Qe8+ {[%emt 0:00:09]} Re7 {[%emt 0:00:20]} 41. Qgxe7# {[%emt 0:00:07]} 1-0

[Event "DVM U10 2024"]
[Site "Duesseldorf"]
[Date "2024.12.28"]
[Round "4"]
[White "Nickel, Alexander"]
[Black "Busch, Jonathan Luis"]
[Result "0-1"]
[ECO "B50"]
[WhiteElo "1200"]
[BlackElo "1655"]
[Annotator "NA RC"]
[PlyCount "136"]
[EventDate "2024.12.23"]
[EventType "team-tourn"]
[EventRounds "7"]
[EventCountry "GER"]
[SourceTitle "playchess.com"]
[Source "ChessBase"]
[SourceQuality "1"]
[TimeControl "3300+5"]

1. e4 {[%emt 0:00:01]} c5 {[%emt 0:00:08]} 2. Nf3 {[%emt 0:00:04]} d6 {[%emt 0:00:09]} 3. Nc3 {[%emt 0:00:31]} a6 {[%emt 0:00:18]} 4. Be2 {[%emt 0:00:14]} Nf6 {[%emt 0:00:07]} 5. d3 {[%emt 0:00:24]} Nc6 {[%emt 0:01:54]} 6. Be3 {[%emt 0:00:57]} e6 {[%emt 0:00:28]} 7. h3 {[%emt 0:01:34]} d5 {[%emt 0:00:27]} 8. exd5 {[%emt 0:04:37]} exd5 {[%emt 0:01:33]} 9. Bg5 {[%emt 0:00:32]} Be7 {[%emt 0:00:46]} 10. O-O {[%emt 0:01:07]} h6 {[%emt 0:00:17]} 11. Bh4 {[%emt 0:01:16]} O-O {[%emt 0:00:11]} 12. Re1 {[%emt 0:00:26]} Bf5 {[%emt 0:00:53]} 13. a3 {[%emt 0:08:34]} Qd7 {[%emt 0:02:09]} 14. Nh2 {[%emt 0:04:09]} Ne8 {[%emt 0:00:47]} 15. Bxe7 {[%emt 0:00:04]} Nxe7 {[%emt 0:00:11]} 16. Bg4 {[%emt 0:00:12]} Nd6 {[%emt 0:00:24]} 17. b3 {[%emt 0:03:13]} Rad8 {[%emt 0:00:54]} 18. Na4 {[%emt 0:00:45]} Qc7 {[%emt 0:01:58]} 19. Nxc5 {[%emt 0:01:41]} Qxc5 {[%emt 0:01:01]} 20. Rxe7 {[%emt 0:00:41]} Ne4 {[%emt 0:00:59]} 21. dxe4 {[%emt 0:11:15]} Bxg4 {[%emt 0:03:01]} 22. Qxg4 {[%emt 0:00:51]} Qxe7 {[%emt 0:00:15]} 23. exd5 {[%emt 0:00:27]} Rxd5 {[%emt 0:00:15]} 24. Qg3 {[%emt 0:01:10]} Rfd8 {[%emt 0:00:28]} 25. Ng4 {[%emt 0:01:04]} Rd1+ {[%emt 0:00:24]} 26. Rxd1 {[%emt 0:00:06]} Rxd1+ {[%emt 0:00:10]} 27. Kh2 {[%emt 0:00:05]} b5 {[%emt 0:02:16]} 28. Nxh6+ {[%emt 0:01:40]} Kh7 {[%emt 0:02:48]} 29. Nf5 {[%emt 0:00:22]} Qf6 {[%emt 0:00:19]} 30. Qg4 {[%emt 0:01:40]} Rd2 {[%emt 0:01:05]} 31. Qh5+ {[%emt 0:01:53]} Kg8 {[%emt 0:00:39]} 32. Qf3 {[%emt 0:01:10]} Rxc2 {[%emt 0:00:05]} 33. g4 {[%emt 0:00:05]} Rc8 {[%emt 0:00:05]} 34. Qb7 {[%emt 0:00:05]} Re8 {[%emt 0:00:05]} 35. Qd7 {[%emt 0:00:05]} Qe6 {[%emt 0:00:05]} 36. Qd2 {[%emt 0:00:05]} Qe2 {[%emt 0:00:05]} 37. Qd4 {[%emt 0:00:05]} Qe5+ {[%emt 0:00:05]} 38. Qxe5 {[%emt 0:00:05]} Rxe5 {[%emt 0:09:45]} 39. Nd6 {[%emt 0:03:49]} Re2 {[%emt 0:00:28]} 40. Kg3 {[%emt 0:00:28]} Rd2 {[%emt 0:00:22]} 41. Ne4 {[%emt 0:00:00]} Rd3+ {[%emt 0:00:05]} 42. f3 {[%emt 0:00:00]} Rxb3 {[%emt 0:00:11]} 43. a4 {[%emt 0:00:06]} bxa4 {[%emt 0:00:08]} 44. Nc5 {[%emt 0:00:31]} a5 {[%emt 0:00:21]} 45. Nxa4 {[%emt 0:00:00]} Rb4 {[%emt 0:00:49]} 46. Nc3 {[%emt 0:00:00]} a4 {[%emt 0:00:20]} 47. h4 {[%emt 0:00:05]} a3 {[%emt 0:00:12]} 48. Na2 {[%emt 0:00:01]} Rb2 {[%emt 0:00:15]} 49. Nc1 {[%emt 0:00:07]} Rc2 {[%emt 0:00:23]} 50. Nb3 {[%emt 0:00:03]} a2 {[%emt 0:00:11]} 51. Na1 {[%emt 0:00:03]} Rc1 {[%emt 0:00:19]} 52. Nb3 {[%emt 0:00:01]} Rb1 {[%emt 0:00:16]} 53. Nd2 {[%emt 0:00:15]} a1=Q {[%emt 0:00:33]} 54. Nxb1 {[%emt 0:00:00]} Qxb1 {[%emt 0:00:14]} 55. h5 {[%emt 0:00:03]} g6 {[%emt 0:00:37]} 56. h6 {[%emt 0:00:06]} Kh7 {[%emt 0:00:07]} 57. g5 {[%emt 0:00:06]} Qf5 {[%emt 0:00:16]} 58. f4 {[%emt 0:00:04]} f6 {[%emt 0:00:14]} 59. gxf6 {[%emt 0:00:19]} Kxh6 {[%emt 0:00:19]} 60. f7 {[%emt 0:00:19]} Qxf7 {[%emt 0:00:18]} 61. f5 {[%emt 0:00:06]} Qxf5 {[%emt 0:01:52]} 62. Kh4 {[%emt 0:00:12]} g5+ {[%emt 0:00:11]} 63. Kg3 {[%emt 0:00:03]} Qf3+ {[%emt 0:00:48]} 64. Kh2 {[%emt 0:00:00]} g4 {[%emt 0:00:17]} 65. Kg1 {[%emt 0:00:03]} Qe2 {[%emt 0:00:14]} 66. Kh1 {[%emt 0:00:01]} g3 {[%emt 0:00:22]} 67. Kg1 {[%emt 0:00:06]} Qf2+ {[%emt 0:00:17]} 68. Kh1 {[%emt 0:00:03]} Qh2# {[%emt 0:00:16]} 0-1

[Event "DVM U10 2024"]
[Site "Duesseldorf"]
[Date "2024.12.28"]
[Round "4"]
[White "Torgoev, Timur"]
[Black "Brakhane, Justus"]
[Result "1/2-1/2"]
[ECO "B01"]
[WhiteElo "1153"]
[BlackElo "1068"]
[Annotator "NA"]
[PlyCount "82"]
[EventDate "2024.12.23"]
[EventType "team-tourn"]
[EventRounds "7"]
[EventCountry "GER"]
[SourceTitle "playchess.com"]
[Source "ChessBase"]
[SourceQuality "1"]
[TimeControl "3300+5"]

1. e4 {[%emt 0:00:02]} d5 {[%emt 0:00:01]} 2. exd5 {[%emt 0:00:31]} Nf6 {[%emt 0:00:05]} 3. Bc4 {[%emt 0:00:27]} c6 {[%emt 0:00:09]} 4. dxc6 {[%emt 0:00:20]} Nxc6 {[%emt 0:00:06]} 5. Nf3 {[%emt 0:00:10]} e5 {[%emt 0:00:07]} 6. Ng5 {[%emt 0:00:55]} Nd5 {[%emt 0:01:26]} 7. Nc3 {[%emt 0:00:43]} Be6 {[%emt 0:00:10]} 8. d3 {[%emt 0:00:44]} Be7 {[%emt 0:00:16]} 9. Nxe6 {[%emt 0:00:20]} fxe6 {[%emt 0:00:11]} 10. Qf3 {[%emt 0:00:38]} Bb4 {[%emt 0:00:37]} 11. Bd2 {[%emt 0:00:19]} Bxc3 {[%emt 0:00:17]} 12. Bxc3 {[%emt 0:00:04]} Rf8 {[%emt 0:00:33]} 13. Qe4 {[%emt 0:00:40]} Nxc3 {[%emt 0:00:15]} 14. bxc3 {[%emt 0:00:14]} Rf4 {[%emt 0:00:14]} 15. Qxh7 {[%emt 0:00:27]} Qf6 {[%emt 0:00:13]} 16. Qg8+ {[%emt 0:00:47]} Qf8 {[%emt 0:00:10]} 17. Qxf8+ {[%emt 0:00:07]} Kxf8 {[%emt 0:00:12]} 18. Bxe6 {[%emt 0:00:48]} e4 {[%emt 0:00:13]} 19. Kd2 {[%emt 0:00:26]} exd3 {[%emt 0:00:13]} 20. Kxd3 {[%emt 0:00:34]} Rxf2 {[%emt 0:00:08]} 21. g4 {[%emt 0:00:23]} Ke7 {[%emt 0:00:14]} 22. Bd5 {[%emt 0:00:25]} Ne5+ {[%emt 0:00:17]} 23. Kd4 {[%emt 0:01:07]} Nxg4 {[%emt 0:00:07]} 24. Bxb7 {[%emt 0:00:30]} Rd8+ {[%emt 0:00:06]} 25. Kc4 {[%emt 0:00:17]} Ne3+ {[%emt 0:00:16]} 26. Kb5 {[%emt 0:00:46]} Rb8 {[%emt 0:00:11]} 27. Ka6 {[%emt 0:00:10]} Rxc2 {[%emt 0:00:20]} 28. Kxa7 {[%emt 0:00:14]} Rd8 {[%emt 0:00:11]} 29. a4 {[%emt 0:00:15]} Rxc3 {[%emt 0:00:06]} 30. a5 {[%emt 0:00:09]} Rc7 {[%emt 0:00:15]} 31. Kb6 {[%emt 0:00:15]} Rcd7 {[%emt 0:00:11]} 32. a6 {[%emt 0:00:17]} Rd6+ {[%emt 0:00:06]} 33. Kc5 {[%emt 0:00:45]} Nd5 {[%emt 0:02:52]} 34. Bxd5 {[%emt 0:00:36]} Rxd5+ {[%emt 0:00:16]} 35. Kc4 {[%emt 0:00:16]} R5d7 {[%emt 0:00:19]} 36. a7 {[%emt 0:00:13]} Ra8 {[%emt 0:00:06]} 37. Rhe1+ {[%emt 0:00:17]} Kf7 {[%emt 0:00:20]} 38. Rf1+ {[%emt 0:00:27]} Kg8 {[%emt 0:00:13]} 39. h4 {[%emt 0:00:49]} Raxa7 {[%emt 0:00:23]} 40. Rxa7 {[%emt 0:00:08]} Rxa7 {[%emt 0:00:05]} 41. Rh1 {[%emt 0:00:50]} Rf7 {[%emt 0:00:11]} 1/2-1/2